fUST/lending_fUST_20250630
["ID","MTS","AMOUNT","RATE_DAILY","PERIOD"]
[368637863,1751257844596,-500.0,0.00018948,2]
[368637864,1751257844605,-500.0,0.00018948,2]
[368637865,1751257844619,-500.0,0.00018948,2]
[368637866,1751257844628,-501.01515253,0.00018948,2]
[368637867,1751257844638,-500.79792581,0.00018963,2]
[368637868,1751257844647,-378.14361845,0.00018963,2]
[368637869,1751257844656,-837.16779106,0.00018998,2]
[368637870,1751257844667,-160.0,0.00018998,2]
[368637871,1751257844676,-847.41730813,0.00018998,2]
[368637872,1751257844687,-160.0,0.00018998,2]
[368637873,1751257844697,-160.0,0.00018998,2]
[368637874,1751257844706,-160.0,0.00018998,2]
[368637875,1751257844716,-213.84631524,0.00018998,2]
[368637876,1751257844725,-230.31346914,0.00018998,2]
[368637877,1751257844735,-160.0,0.00018998,2]
[368637878,1751257844744,-160.0,0.00018998,2]
[368637879,1751257844753,-12569.13231816,0.00018998,2]
[368637880,1751257844762,-214.99848635,0.00018998,2]
[368637881,1751257844771,-5429.20494266,0.00019,2]
[368637882,1751257844780,-160.0,0.00019003,2]
[368637883,1751257844789,-524.55407094,0.00019003,2]
[368637884,1751257844800,-788.90486799,0.00019022,2]
[368637885,1751257844810,-460.0,0.00019043,2]
[368637886,1751257844819,-460.0,0.00019044,2]
[368637887,1751257844829,-460.0,0.00019044,2]
[368637888,1751257844838,-1703.57,0.00019044,2]
[368637889,1751257844847,-460.0,0.00019045,2]
[368637890,1751257844857,-2602.4,0.00019045,2]
[368637891,1751257844867,-2749.34,0.00019045,2]
[368637892,1751257844876,-460.0,0.00019045,2]
[368637893,1751257844885,-475.12,0.00019045,2]
[368637894,1751257844895,-460.0,0.00019045,2]
[368637895,1751257844904,-460.0,0.00019045,2]
[368637896,1751257844913,-460.0,0.00019045,2]
[368637897,1751257844923,-460.0,0.00019045,2]
[368637898,1751257844933,-2638.81,0.00019045,2]
[368637899,1751257844943,-2329.11,0.00019045,2]
[368637900,1751257844953,-3030.06,0.00019045,2]
[368637901,1751257844962,-460.0,0.00019045,2]
[368637902,1751257844972,-460.0,0.00019045,2]
[368637903,1751257844983,-1427.46,0.00019045,2]
[368637904,1751257844992,-460.0,0.00019045,2]
[368637905,1751257845001,-479.18,0.00019045,2]
[368637906,1751257845011,-525.88219582,0.00019047,2]
[368637907,1751257845020,-460.0,0.00019047,2]
[368637908,1751257845030,-516.73,0.00019047,2]
[368637909,1751257845039,-460.0,0.00019047,2]
[368637910,1751257845048,-460.0,0.00019047,2]
[368637911,1751257845058,-460.0,0.00019047,2]
[368637912,1751257845067,-460.0,0.00019047,2]
[368637913,1751257845076,-296.39734605,0.00019047,2]
[368637914,1751257845086,-460.0,0.00019048,2]
[368637915,1751257845095,-460.0,0.00019048,2]
[368637916,1751257845105,-460.0,0.00019048,2]
[368637917,1751257845114,-581.44,0.00019048,2]
[368637918,1751257845123,-573.66,0.00019048,2]
[368637919,1751257845132,-460.0,0.00019048,2]
[368637920,1751257845141,-889.3,0.00019048,2]
[368637921,1751257845151,-460.0,0.00019048,2]
[368637922,1751257845160,-17303.36,0.00019048,2]
[368637923,1751257845170,-460.0,0.00019048,2]
[368637924,1751257845179,-460.0,0.00019048,2]
[368637925,1751257845189,-460.0,0.00019049,2]
[368637926,1751257845198,-1049.57,0.00019049,2]
[368637927,1751257845209,-460.0,0.00019049,2]
[368637928,1751257845218,-460.0,0.00019049,2]
[368637929,1751257845227,-460.0,0.00019049,2]
[368637930,1751257845237,-488.34,0.00019049,2]
[368637931,1751257845247,-460.0,0.00019049,2]
[368637932,1751257845256,-460.0,0.00019049,2]
[368637933,1751257845266,-577.66,0.00019049,2]
[368637934,1751257845275,-460.0,0.00019049,2]
[368637935,1751257845284,-651.29,0.00019049,2]
[368637936,1751257845294,-889.34,0.00019049,2]
[368637937,1751257845303,-460.0,0.0001905,2]
[368637938,1751257845313,-460.0,0.00019051,2]
[368637939,1751257845323,-460.0,0.00019053,2]
[368637940,1751257845333,-460.0,0.00019053,2]
[368637941,1751257845342,-460.0,0.00019053,2]
[368637942,1751257845351,-460.0,0.00019053,2]
[368637943,1751257845361,-460.0,0.00019053,2]
[368637944,1751257845371,-460.0,0.00019053,2]
[368637945,1751257845380,-489.95,0.00019053,2]
[368637946,1751257845391,-460.0,0.00019053,2]
[368637947,1751257845400,-460.0,0.00019053,2]
[368637948,1751257845409,-460.0,0.00019053,2]
[368637949,1751257845419,-622.37,0.00019053,2]
[368637950,1751257845429,-517.03,0.00019053,2]
[368637951,1751257845439,-460.0,0.00019053,2]
[368637952,1751257845448,-1633.77,0.00019053,2]
[368637953,1751257845457,-460.0,0.00019053,2]
[368637954,1751257845467,-4932.33,0.00019053,2]
[368637955,1751257845476,-1412.82,0.00019053,2]
[368637956,1751257845485,-460.0,0.00019053,2]
[368637957,1751257845495,-460.0,0.00019053,2]
[368637958,1751257845504,-460.0,0.00019053,2]
[368637959,1751257845513,-503.3086001,0.00019053,2]
[368637960,1751257845522,-460.0,0.00019055,2]
[368637961,1751257845531,-460.0,0.00019055,2]
[368637962,1751257845541,-460.0,0.00019055,2]
[368637963,1751257845550,-707.14,0.00019055,2]
[368637964,1751257845559,-435.52667154,0.00019055,2]
[368637965,1751257845569,-460.0,0.00019055,2]
[368637966,1751257845578,-460.0,0.00019055,2]
[368637967,1751257845587,-486.91070412,0.00019055,2]
[368637968,1751257845596,-529.1243681,0.00019055,2]
[368637969,1751257845605,-460.0,0.00019055,2]
[368637970,1751257845617,-460.0,0.00019055,2]
[368637971,1751257845626,-460.0,0.00019055,2]
[368637972,1751257845636,-589.62536079,0.00019055,2]
[368637973,1751257845645,-460.0,0.00019055,2]
[368637974,1751257845655,-460.0,0.00019057,2]
[368637975,1751257845664,-4112.22560431,0.00019072,2]
[368637976,1751257845673,-10329.0,0.0001909,2]
[368637977,1751257845682,-2480.06076497,0.00019158,2]
[368637978,1751257845692,-500.0,0.00019164,2]
[368637979,1751257845702,-500.0,0.00019178,2]
[368637980,1751257845711,-234.47094767,0.00019178,2]
[368637981,1751257845721,-596.913827,0.00019178,2]
[368637982,1751257845731,-4112.22560431,0.00019245,2]
[368637983,1751257845740,-460.0,0.00019318,2]
[368637984,1751257845749,-460.0,0.00019318,2]
[368637985,1751257845759,-1703.57,0.00019318,2]
[368637986,1751257845768,-460.0,0.00019319,2]
[368637987,1751257845777,-2602.4,0.00019319,2]
[368637988,1751257845786,-2749.34,0.00019319,2]
[368637989,1751257845795,-339.48290489,0.00019319,2]
[368637990,1751257845805,-475.12,0.00019319,2]
[368637991,1751257845815,-460.0,0.00019319,2]
[368637992,1751257845828,-460.0,0.00019319,2]
[368637993,1751257845839,-460.0,0.00019319,2]
[368637994,1751257845958,-460.0,0.00019319,2]
[368637995,1751257845968,-2638.81,0.00019319,2]
[368637996,1751257845977,-2329.11,0.00019319,2]
[368637997,1751257845987,-3030.06,0.00019319,2]
[368637998,1751257845996,-460.0,0.00019319,2]
[368637999,1751257846005,-460.0,0.00019319,2]
[368638000,1751257846015,-1427.46,0.00019319,2]
[368638001,1751257846024,-460.0,0.00019319,2]
[368638002,1751257846034,-479.18,0.00019319,2]
[368638003,1751257846043,-460.0,0.00019321,2]
[368638004,1751257846053,-516.73,0.00019321,2]
[368638005,1751257846062,-460.0,0.00019321,2]
[368638006,1751257846072,-460.0,0.00019321,2]
[368638007,1751257846082,-460.0,0.00019321,2]
[368638008,1751257846091,-460.0,0.00019322,2]
[368638009,1751257846101,-460.0,0.00019322,2]
[368638010,1751257846111,-460.0,0.00019322,2]
[368638011,1751257846121,-581.44,0.00019322,2]
[368638012,1751257846130,-573.66,0.00019322,2]
[368638013,1751257846139,-460.0,0.00019322,2]
[368638014,1751257846149,-889.3,0.00019322,2]
[368638015,1751257846158,-460.0,0.00019322,2]
[368638016,1751257846167,-17303.36,0.00019322,2]
[368638017,1751257846176,-460.0,0.00019322,2]
[368638019,1751257846186,-460.0,0.00019322,2]
[368638021,1751257846195,-460.0,0.00019323,2]
[368638023,1751257846204,-1049.57,0.00019323,2]
[368638025,1751257846213,-277.29815149,0.00019323,2]
[368638027,1751257846222,-460.0,0.00019323,2]
[368638029,1751257846232,-460.0,0.00019323,2]
[368638031,1751257846242,-488.34,0.00019323,2]
[368638033,1751257846252,-460.0,0.00019323,2]
[368638035,1751257846261,-460.0,0.00019323,2]
[368638037,1751257846271,-577.66,0.00019323,2]
[368638039,1751257846280,-460.0,0.00019323,2]
[368638041,1751257846290,-651.29,0.00019323,2]
[368638043,1751257846299,-889.34,0.00019323,2]
[368638045,1751257846309,-460.0,0.00019325,2]
[368638047,1751257846318,-460.0,0.00019327,2]
[368638049,1751257846327,-460.0,0.00019327,2]
[368638051,1751257846336,-460.0,0.00019327,2]
[368638053,1751257846346,-460.0,0.00019327,2]
[368638055,1751257846355,-460.0,0.00019327,2]
[368638057,1751257846364,-460.0,0.00019327,2]
[368638059,1751257846373,-489.95,0.00019327,2]
[368638061,1751257846382,-460.0,0.00019327,2]
[368638063,1751257846392,-460.0,0.00019327,2]
[368638065,1751257846401,-622.37,0.00019327,2]
[368638067,1751257846410,-517.03,0.00019327,2]
[368638069,1751257846419,-460.0,0.00019327,2]
[368638071,1751257846428,-1633.77,0.00019327,2]
[368638073,1751257846438,-460.0,0.00019327,2]
[368638075,1751257846447,-4932.33,0.00019327,2]
[368638077,1751257846457,-1412.82,0.00019327,2]
[368638079,1751257846467,-460.0,0.00019327,2]
[368638081,1751257846476,-460.0,0.00019327,2]
[368638083,1751257846486,-460.0,0.00019329,2]
[368638085,1751257846495,-460.0,0.00019329,2]
[368638087,1751257846505,-460.0,0.00019329,2]
[368638089,1751257846515,-707.14,0.00019329,2]
[368638091,1751257846524,-460.0,0.00019329,2]
[368638093,1751257846534,-460.0,0.00019329,2]
[368638095,1751257846543,-460.0,0.00019329,2]
[368638097,1751257846552,-151.0,0.00019329,2]
[368638099,1751257846562,-151.0,0.00019329,2]
[368638101,1751257846571,-151.0,0.00019329,2]
[368638103,1751257846580,-417.52,0.00019329,2]
[368638105,1751257846589,-151.0,0.00019329,2]
[368638107,1751257846598,-151.0,0.00019329,2]
[368638110,1751257846608,-151.0,0.00019329,2]
[368638112,1751257846623,-151.0,0.00019329,2]
[368638113,1751257846632,-152.30005,0.00019329,2]
[368638115,1751257846642,-151.0,0.00019329,2]
[368638117,1751257846652,-151.0,0.00019329,2]
[368638120,1751257846662,-199.621872,0.00019329,2]
[368638122,1751257846673,-151.0,0.00019329,2]
[368638123,1751257846682,-151.70494,0.00019329,2]
[368638124,1751257846693,-100000.0,0.00019329,2]
[368638126,1751257846703,-508.96,0.00019331,2]
[368638128,1751257846713,-5000.0,0.00019348,2]
[368638129,1751257846722,-25000.0,0.00019348,2]
[368638130,1751257846731,-8906.75071779,0.00019348,2]
[368638131,1751257846740,-690.642,0.00019348,2]
[368638132,1751257846750,-207.4,0.00019348,2]
[368638134,1751257846759,-716.195754,0.00019403,2]
[368638136,1751257846768,-82764.7101755,0.00019406,2]
[368638138,1751257846778,-151.0,0.00019406,2]
[368638140,1751257846787,-151.0,0.00019406,2]
[368638142,1751257846795,-1000.0,0.00019413,2]
[368638144,1751257846805,-151.0,0.00019417,2]
[368638146,1751257846814,-151.0,0.00019417,2]
[368638147,1751257846823,-151.0,0.00019417,2]
[368638148,1751257846832,-151.0,0.00019417,2]
[368638149,1751257846841,-151.0,0.00019417,2]
[368638150,1751257846851,-151.0,0.00019417,2]
[368638151,1751257846867,-4112.22560431,0.00019417,2]
[368638152,1751257846880,-151.48498821,0.0001943,2]
[368638153,1751257846890,-742.6949969,0.00019458,2]
[368638154,1751257846900,-151.0,0.00019482,2]
[368638155,1751257846909,-151.0,0.00019482,2]
[368638156,1751257846919,-151.0,0.00019482,2]
[368638157,1751257846928,-151.0,0.00019494,2]
[368638158,1751257846939,-151.0,0.00019494,2]
[368638159,1751257846949,-288.295922,0.00019494,2]
[368638160,1751257846958,-151.0,0.00019494,2]
[368638161,1751257846968,-151.0,0.00019494,2]
[368638162,1751257846978,-1000.0,0.00019496,2]
[368638163,1751257846988,-1000.0,0.00019496,2]
[368638164,1751257846998,-1003.69993449,0.00019496,2]
[368638165,1751257847007,-500.0,0.00019496,2]
[368638166,1751257847017,-345.21844653,0.00019496,2]
[368638167,1751257847026,-1002.40315064,0.00019496,2]
[368638168,1751257847036,-2480.06076497,0.00019502,2]
[368638169,1751257847046,-770.17471178,0.00019513,2]
[368638170,1751257847056,-798.67117612,0.00019568,2]
[368638171,1751257847066,-2362.2,0.00019584,3]
[368638172,1751257847076,-1181.1,0.00019584,3]
[368638173,1751257847087,-590.54,0.00019584,3]
[368638174,1751257847096,-393.7,0.00019584,3]
[368638175,1751257847106,-4112.22560431,0.0001959,2]
[368638176,1751257847116,-151.0,0.0001959,2]
[368638177,1751257847127,-154.553503,0.0001959,2]
[368638178,1751257847136,-151.0,0.0001959,2]
[368638179,1751257847147,-460.0,0.00019592,2]
[368638180,1751257847157,-460.0,0.00019592,2]
[368638181,1751257847167,-1703.57,0.00019592,2]
[368638182,1751257847177,-496.38,0.00019593,2]
[368638183,1751257847187,-2602.4,0.00019593,2]
[368638184,1751257847198,-2749.34,0.00019593,2]
[368638185,1751257847208,-475.12,0.00019593,2]
[368638186,1751257847218,-514.8074049,0.00019593,2]
[368638187,1751257847228,-460.0,0.00019593,2]
[368638188,1751257847238,-460.0,0.00019593,2]
[368638189,1751257847249,-460.0,0.00019593,2]
[368638190,1751257847260,-2638.81,0.00019593,2]
[368638191,1751257847270,-2329.11,0.00019593,2]
[368638192,1751257847280,-3030.06,0.00019593,2]
[368638193,1751257847289,-460.0,0.00019593,2]
[368638194,1751257847299,-460.0,0.00019593,2]
[368638195,1751257847309,-1427.46,0.00019593,2]
[368638196,1751257847319,-460.0,0.00019593,2]
[368638197,1751257847328,-479.18,0.00019593,2]
[368638198,1751257847338,-460.0,0.00019595,2]
[368638199,1751257847348,-516.73,0.00019595,2]
[368638200,1751257847357,-466.59,0.00019595,2]
[368638201,1751257847367,-460.0,0.00019595,2]
[368638202,1751257847376,-460.0,0.00019595,2]
[368638203,1751257847385,-460.0,0.00019596,2]
[368638204,1751257847395,-460.0,0.00019596,2]
[368638205,1751257847405,-581.44,0.00019596,2]
[368638206,1751257847414,-573.66,0.00019596,2]
[368638207,1751257847424,-460.0,0.00019596,2]
[368638208,1751257847433,-889.3,0.00019596,2]
[368638209,1751257847443,-460.0,0.00019596,2]
[368638210,1751257847452,-17303.36,0.00019596,2]
[368638211,1751257847462,-194.74,0.00019596,2]
[368638212,1751257847472,-460.0,0.00019596,2]
[368638213,1751257847482,-1049.57,0.00019597,2]
[368638214,1751257847491,-460.0,0.00019597,2]
[368638215,1751257847500,-460.0,0.00019597,2]
[368638216,1751257847509,-488.34,0.00019597,2]
[368638217,1751257847519,-460.0,0.00019597,2]
[368638218,1751257847528,-460.0,0.00019597,2]
[368638219,1751257847537,-577.66,0.00019597,2]
[368638220,1751257847547,-599.42,0.00019597,2]
[368638221,1751257847556,-651.29,0.00019597,2]
[368638222,1751257847565,-889.34,0.00019597,2]
[368638223,1751257847574,-151.0,0.00019598,2]
[368638224,1751257847584,-240.02230038,0.00019599,2]
[368638225,1751257847594,-460.0,0.00019601,2]
[368638226,1751257847604,-460.0,0.00019601,2]
[368638227,1751257847615,-460.0,0.00019601,2]
[368638228,1751257847624,-460.0,0.00019601,2]
[368638229,1751257847634,-460.0,0.00019601,2]
[368638230,1751257847643,-460.0,0.00019601,2]
[368638231,1751257847652,-489.95,0.00019601,2]
[368638232,1751257847661,-622.37,0.00019601,2]
[368638233,1751257847671,-517.03,0.00019601,2]
[368638234,1751257847680,-460.0,0.00019601,2]
[368638235,1751257847690,-1633.77,0.00019601,2]
[368638236,1751257847699,-460.0,0.00019601,2]
[368638237,1751257847709,-4932.33,0.00019601,2]
[368638238,1751257847719,-1412.82,0.00019601,2]
[368638239,1751257847728,-460.0,0.00019601,2]
[368638240,1751257847738,-460.0,0.00019601,2]
[368638241,1751257847747,-460.0,0.00019602,2]
[368638242,1751257847757,-468.24336792,0.00019602,2]
[368638243,1751257847766,-4112.45,0.00019602,2]
[368638244,1751257847775,-1086.32,0.00019602,2]
[368638245,1751257847785,-1057.17,0.00019602,2]
[368638246,1751257847794,-460.0,0.00019602,2]
[368638247,1751257847803,-460.0,0.00019602,2]
[368638248,1751257847812,-1680.47,0.00019602,2]
[368638249,1751257847821,-1290.69,0.00019602,2]
[368638250,1751257847830,-409.27241489,0.00019602,2]
[368638251,1751257847840,-935.71,0.00019602,2]
[368638252,1751257847849,-460.0,0.00019602,2]
[368638253,1751257847859,-1903.25,0.00019602,2]
[368638254,1751257847868,-460.0,0.00019602,2]
[368638255,1751257847878,-460.0,0.00019602,2]
[368638256,1751257847888,-460.0,0.00019602,2]
[368638257,1751257847897,-151.0,0.00019603,2]
[368638258,1751257847907,-151.0,0.00019603,2]
[368638259,1751257847917,-151.0,0.00019603,2]
[368638260,1751257847926,-460.0,0.00019603,2]
[368638261,1751257847936,-460.0,0.00019603,2]
[368638262,1751257847945,-460.0,0.00019603,2]
[368638263,1751257847955,-707.14,0.00019603,2]
[368638264,1751257847965,-460.0,0.00019603,2]
[368638265,1751257847974,-828.22200964,0.00019623,2]
[368638266,1751257847983,-858.86622399,0.00019678,2]
[368638267,1751257847993,-944.48783852,0.00019733,2]
[368638268,1751257848002,-4112.22560431,0.00019762,2]
[368638269,1751257848012,-460.0,0.00019866,2]
[368638270,1751257848021,-460.0,0.00019866,2]
[368638271,1751257848030,-1703.57,0.00019866,2]
[368638272,1751257848039,-2602.4,0.00019867,2]
[368638273,1751257848049,-2749.34,0.00019867,2]
[368638274,1751257848059,-475.12,0.00019867,2]
[368638275,1751257848068,-460.0,0.00019867,2]
[368638276,1751257848078,-460.0,0.00019867,2]
[368638277,1751257848087,-460.0,0.00019867,2]
[368638278,1751257848096,-2638.81,0.00019867,2]
[368638279,1751257848107,-2329.11,0.00019867,2]
[368638280,1751257848117,-3030.06,0.00019867,2]
[368638281,1751257848126,-460.0,0.00019867,2]
[368638282,1751257848136,-460.0,0.00019867,2]
[368638283,1751257848145,-1427.46,0.00019867,2]
[368638284,1751257848155,-473.01,0.00019867,2]
[368638285,1751257848165,-479.18,0.00019867,2]
[368638286,1751257848175,-1680.0,0.00019868,2]
[368638287,1751257848184,-420.0,0.00019868,2]
[368638288,1751257848194,-590.32,0.00019869,2]
[368638289,1751257848203,-516.73,0.00019869,2]
[368638290,1751257848212,-460.0,0.00019869,2]
[368638291,1751257848222,-460.0,0.00019869,2]
[368638292,1751257848232,-460.0,0.0001987,2]
[368638293,1751257848242,-460.0,0.0001987,2]
[368638294,1751257848252,-581.44,0.0001987,2]
[368638295,1751257848261,-573.66,0.0001987,2]
[368638296,1751257848271,-460.0,0.0001987,2]
[368638297,1751257848280,-889.3,0.0001987,2]
[368638298,1751257848290,-460.0,0.0001987,2]
[368638299,1751257848299,-17303.36,0.0001987,2]
[368638300,1751257848308,-460.0,0.0001987,2]
[368638301,1751257848318,-1049.57,0.00019871,2]
[368638302,1751257848327,-460.0,0.00019871,2]
[368638303,1751257848337,-164.05861019,0.00019871,2]
[368638304,1751257848347,-488.34,0.00019871,2]
[368638305,1751257848356,-460.0,0.00019871,2]
[368638306,1751257848366,-460.0,0.00019871,2]
[368638307,1751257848375,-577.66,0.00019871,2]
[368638308,1751257848385,-651.29,0.00019871,2]
[368638309,1751257848394,-889.34,0.00019871,2]
[368638310,1751257848404,-460.0,0.00019875,2]
[368638311,1751257848413,-460.0,0.00019875,2]
[368638312,1751257848423,-460.0,0.00019875,2]
[368638313,1751257848433,-460.0,0.00019875,2]
[368638314,1751257848443,-460.0,0.00019875,2]
[368638315,1751257848452,-489.95,0.00019875,2]
[368638316,1751257848461,-622.37,0.00019875,2]
[368638317,1751257848471,-517.03,0.00019875,2]
[368638318,1751257848481,-1633.77,0.00019875,2]
[368638319,1751257848491,-460.0,0.00019875,2]
[368638320,1751257848500,-4932.33,0.00019875,2]
[368638321,1751257848509,-1412.82,0.00019875,2]
[368638322,1751257848518,-460.0,0.00019875,2]
[368638323,1751257848528,-460.0,0.00019875,2]
[368638324,1751257848537,-460.0,0.00019876,2]
[368638325,1751257848547,-4112.45,0.00019876,2]
[368638326,1751257848689,-1086.32,0.00019876,2]
[368638327,1751257848699,-1057.17,0.00019876,2]
[368638328,1751257848709,-460.0,0.00019876,2]
[368638329,1751257848718,-460.0,0.00019876,2]
[368638330,1751257848727,-1680.47,0.00019876,2]
[368638331,1751257848736,-151.0,0.00019876,2]
[368638332,1751257848746,-151.0,0.00019876,2]
[368638333,1751257848755,-151.0,0.00019876,2]
[368638334,1751257848768,-1290.69,0.00019876,2]
[368638335,1751257848778,-935.71,0.00019876,2]
[368638336,1751257848787,-460.0,0.00019876,2]
[368638337,1751257848797,-1903.25,0.00019876,2]
[368638338,1751257848807,-460.0,0.00019876,2]
[368638339,1751257848817,-460.0,0.00019876,2]
[368638340,1751257848826,-460.0,0.00019876,2]
[368638341,1751257848836,-312.96504238,0.00019877,2]
[368638342,1751257848846,-460.0,0.00019877,2]
[368638343,1751257848856,-151.840684,0.00019877,2]
[368638344,1751257848866,-151.0,0.00019877,2]
[368638345,1751257848875,-707.14,0.00019877,2]
[368638346,1751257848885,-151.0,0.00019877,2]
[368638347,1751257848895,-151.902895,0.00019877,2]
[368638348,1751257848904,-151.0,0.00019877,2]
[368638349,1751257848914,-460.0,0.00019877,2]
[368638350,1751257848923,-151.0,0.00019877,2]
[368638351,1751257848933,-151.0,0.00019877,2]
[368638352,1751257848942,-4112.22560431,0.00019934,2]
[368638353,1751257848951,-1001.60636709,0.00019961,2]
[368638354,1751257848961,-1680.0,0.00019964,2]
[368638355,1751257848970,-5052.58812997,0.0002,2]
[368638356,1751257848979,-151.0,0.0002,2]
[368638357,1751257848989,-300.0,0.0002,2]
[368638358,1751257848999,-160.0,0.0002,3]
[368638359,1751257849008,-1037.20374534,0.00020044,2]
[368638360,1751257849018,-1500.0,0.00020044,2]
[368638361,1751257849027,-4000.0,0.00020059,4]
[368638362,1751257849037,-151.48498821,0.00020084,2]
[368638363,1751257849047,-4112.22560431,0.00020107,2]
[368638364,1751257849056,-2151.0,0.00020118,2]
[368638365,1751257849066,-646.0,0.00020118,2]
[368638366,1751257849075,-406.0,0.00020118,2]
[368638367,1751257849085,-423.35,0.00020118,2]
[368638368,1751257849095,-966.0,0.00020118,2]
[368638369,1751257849105,-151.0,0.00020118,2]
[368638370,1751257849115,-151.0,0.00020118,2]
[368638371,1751257849125,-151.0,0.00020118,2]
[368638372,1751257849135,-151.0,0.00020118,2]
[368638373,1751257849144,-160.304928,0.00020118,2]
[368638374,1751257849154,-194.109581,0.00020118,2]
[368638375,1751257849164,-194.109581,0.00020118,2]
[368638376,1751257849174,-460.0,0.0002014,2]
[368638377,1751257849183,-460.0,0.0002014,2]
[368638378,1751257849192,-1703.57,0.0002014,2]
[368638379,1751257849202,-2602.4,0.00020141,2]
[368638380,1751257849212,-2749.34,0.00020141,2]
[368638381,1751257849221,-475.12,0.00020141,2]
[368638382,1751257849231,-460.0,0.00020141,2]
[368638383,1751257849241,-460.0,0.00020141,2]
[368638384,1751257849251,-460.0,0.00020141,2]
[368638385,1751257849261,-2638.81,0.00020141,2]
[368638386,1751257849270,-2329.11,0.00020141,2]
[368638387,1751257849279,-3030.06,0.00020141,2]
[368638388,1751257849289,-460.0,0.00020141,2]
[368638389,1751257849298,-460.0,0.00020141,2]
[368638390,1751257849308,-151.0,0.00020141,2]
[368638391,1751257849317,-151.0,0.00020141,2]
[368638392,1751257849326,-151.0,0.00020141,2]
[368638393,1751257849336,-157.034344,0.00020141,2]
[368638394,1751257849345,-155.123146,0.00020141,2]
[368638395,1751257849355,-1427.46,0.00020141,2]
[368638396,1751257849364,-479.18,0.00020141,2]
[368638397,1751257849374,-516.73,0.00020143,2]
[368638398,1751257849383,-460.0,0.00020143,2]
[368638399,1751257849392,-460.0,0.00020144,2]
[368638400,1751257849402,-587.7,0.00020144,2]
[368638401,1751257849411,-581.44,0.00020144,2]
[368638402,1751257849420,-573.66,0.00020144,2]
[368638403,1751257849430,-460.0,0.00020144,2]
[368638404,1751257849439,-889.3,0.00020144,2]
[368638405,1751257849449,-460.0,0.00020144,2]
[368638406,1751257849458,-17303.36,0.00020144,2]
[368638407,1751257849467,-151.0,0.00020144,2]
[368638408,1751257849477,-460.0,0.00020144,2]
[368638409,1751257849486,-1049.57,0.00020145,2]
[368638410,1751257849496,-460.0,0.00020145,2]
[368638411,1751257849505,-488.34,0.00020145,2]
[368638412,1751257849514,-460.0,0.00020145,2]
[368638413,1751257849524,-460.0,0.00020145,2]
[368638414,1751257849533,-577.66,0.00020145,2]
[368638415,1751257849542,-651.29,0.00020145,2]
[368638416,1751257849552,-889.34,0.00020145,2]
[368638417,1751257849562,-151.0,0.00020146,2]
[368638418,1751257849571,-151.339772,0.00020146,2]
[368638419,1751257849580,-151.0,0.00020146,2]
[368638420,1751257849590,-151.0,0.00020146,2]
[368638421,1751257849599,-460.0,0.00020149,2]
[368638422,1751257849608,-460.0,0.00020149,2]
[368638423,1751257849621,-460.0,0.00020149,2]
[368638424,1751257849631,-460.0,0.00020149,2]